bitfinex/quotes_ETHUSD_20251130
["timestamp","ask_amount","ask_price","bid_price","bid_amount"]
[1764509355204,0.9429,3049.5,3049.4,4.00492774]
[1764509355400,0.9429,3049.5,3049.4,4.99003456]
[1764509356069,0.9429,3049.5,3049.4,1.71070093]
[1764509356687,0.9429,3049.5,3049.4,0.72559411]
[1764509357267,0.9429,3049.5,3049.4,4.03772107]
[1764509357671,0.9429,3049.5,3049.4,0.75838744]
[1764509357969,0.9429,3049.5,3049.4,0.72559411]
[1764509358565,0.9429,3049.5,3049.4,0.75838744]
[1764509358766,0.9429,3049.5,3049.4,0.72559411]
[1764509360713,4.66562146,3049.5,3049.4,0.72559411]
[1764509361403,7.94484756,3049.5,3048.8,0.72559411]
[1764509361608,0.454,3049.4,3049.0,0.98530742]
[1764509361917,0.6871,3048.9,3048.4,6.56079193]
[1764509362118,0.1982,3048.9,3048.8,0.98534625]
[1764509362604,0.6928,3048.9,3048.8,0.98534625]
[1764509362803,1.1926,3048.9,3048.8,0.98534625]
[1764509363101,1.1926,3048.9,3048.8,1.71094036]
[1764509363996,1.1926,3048.9,3048.8,0.98534625]
[1764509365205,1.1926,3048.9,3048.8,1.71094036]
[1764509365403,1.1926,3048.9,3048.3,3.28149349]
[1764509365701,0.4997,3048.8,3048.5,0.98544335]
[1764509365895,0.211,3048.7,3048.5,0.98544335]
[1764509366094,0.4946,3048.6,3048.5,0.98544335]
[1764509366404,0.9944,3048.6,3048.5,4.26574513]
[1764509366903,0.9944,3048.6,3048.5,3.28030178]
[1764509367699,0.9944,3048.6,3048.4,0.98544335]
[1764509367898,0.211,3048.7,3048.5,0.72559411]
[1764509368195,0.211,3048.7,3048.4,4.26584155]
[1764509368196,0.211,3048.7,3048.4,0.98544335]
[1764509368381,0.4946,3048.5,3048.3,0.001]
[1764509368583,0.4906,3048.4,3048.3,0.001]
[1764509369008,0.9768,3048.4,3048.3,0.001]
[1764509369877,0.7016,3048.4,3048.3,0.001]
[1764509370074,1.1878,3048.4,3048.3,0.72659411]
[1764509370505,0.9768,3048.4,3048.3,0.72659411]
[1764509370696,1.1878,3048.4,3048.3,0.72659411]
[1764509371489,1.63460572,3048.4,3048.3,0.72659411]
[1764509372005,1.1878,3048.4,3048.3,0.72659411]
[1764509375217,1.1878,3048.4,3048.3,0.001]
[1764509376622,0.211,3048.5,3048.3,3.31432217]
[1764509376828,0.6844,3048.9,3048.4,0.72559411]
[1764509376829,0.1982,3048.9,3048.4,0.72559411]
[1764509377003,0.4862,3049.3,3048.6,0.72559411]
[1764509377325,0.002,3049.5,3048.6,0.75839605]
[1764509377513,0.002,3049.5,3048.7,0.2807]
[1764509377514,0.213,3049.5,3048.7,0.2807]
[1764509378225,0.002,3049.5,3048.7,0.2807]
[1764509378799,0.002,3049.5,3049.4,0.2807]
[1764509379120,0.002,3049.5,3049.4,4.28562774]
[1764509379895,0.002,3049.5,3049.4,4.56632774]
[1764509380894,0.002,3049.5,3049.4,4.28562774]
[1764509382826,0.002,3049.5,3049.4,4.77732774]
[1764509383129,0.002,3049.5,3049.4,5.18283174]
[1764509383297,0.002,3049.5,3049.4,6.91972397]
[1764509384208,0.002,3049.5,3049.4,5.18283174]
[1764509385117,0.002,3049.5,3049.4,4.28562774]
[1764509385428,0.002,3049.5,3049.4,4.49662774]
[1764509386330,0.002,3049.5,3049.4,5.18283174]
[1764509387610,0.002,3049.5,3049.4,4.90213174]
[1764509387834,0.002,3049.5,3049.4,4.69113174]
[1764509388129,0.002,3049.5,3049.4,5.38733174]
[1764509391497,0.002,3049.5,3049.4,4.98182774]
[1764509391726,0.002,3049.5,3049.4,4.70112774]
[1764509392026,0.4864,3049.5,3049.4,4.70112774]
[1764509392909,0.4771,3049.5,3049.4,4.70112774]
[1764509393227,0.9356,3049.5,3049.4,4.70112774]
[1764509393429,0.002,3049.5,3049.4,5.66803174]
[1764509394841,0.002,3049.5,3049.4,5.38733174]
[1764509395434,0.4771,3049.5,3049.4,4.49112774]
[1764509395620,0.9356,3049.5,3049.4,4.49112774]
[1764509395933,0.4771,3049.5,3049.4,4.49112774]
[1764509396132,0.002,3049.5,3049.4,4.49112774]
[1764509396498,0.4771,3049.5,3049.4,4.49112774]
[1764509398218,0.9356,3049.5,3049.4,4.49112774]
[1764509398416,0.002,3049.5,3049.4,4.49112774]
[1764509398620,0.9356,3049.5,3049.4,4.49112774]
[1764509398818,0.4771,3049.5,3049.4,3.76553363]
[1764509399105,0.9356,3049.5,3049.4,4.49112774]
[1764509399304,0.9356,3049.5,3049.4,3.76553363]
[1764509399528,0.9356,3049.5,3049.4,4.49112774]
[1764509400439,0.002,3049.5,3049.4,4.52392107]
[1764509400643,0.002,3049.5,3049.4,4.49112774]
[1764509400838,0.4771,3049.5,3049.4,4.49112774]
[1764509401004,0.002,3049.5,3049.4,4.49112774]
[1764509401748,0.002,3049.5,3049.4,5.01462107]
[1764509402240,0.002,3049.5,3049.4,5.66803174]
[1764509403118,0.002,3049.5,3049.4,5.70082507]
[1764509403949,0.9356,3049.5,3048.9,3.2797729]
[1764509404246,0.4605,3049.5,3049.1,0.13136914]
[1764509404401,0.002,3049.5,3049.1,0.13136914]
[1764509405002,0.002,3049.5,3049.4,0.2807]
[1764509405620,0.002,3049.5,3049.2,0.21]
[1764509405820,0.002,3049.5,3049.4,3.56003363]
[1764509406034,0.002,3049.5,3049.4,4.00492774]
[1764509406244,0.002,3049.5,3049.4,4.59912107]
[1764509406444,0.002,3049.5,3049.4,4.31842107]
[1764509406656,0.9356,3049.5,3049.4,0.72559411]
[1764509406944,0.9356,3049.5,3049.1,0.13136914]
[1764509407109,0.4751,3049.2,3049.1,0.13136914]
[1764509407312,0.4751,3049.2,3048.8,3.27990358]
[1764509407529,0.4585,3049.1,3048.8,3.27990358]
[1764509407735,0.6559,3048.9,3048.8,3.27990358]
[1764509408109,1.1144,3048.9,3048.7,3.7551522]
[1764509408304,0.9336,3048.8,3048.7,3.7551522]
[1764509408615,0.9336,3048.8,3048.7,4.48074631]
[1764509408837,0.9336,3048.8,3048.3,0.001]
[1764509409023,0.9336,3048.8,3048.3,3.28150324]
[1764509409024,0.4751,3048.4,3048.3,3.28150324]
[1764509409333,0.4751,3048.4,3048.3,3.31430841]
[1764509409334,0.9336,3048.4,3048.3,3.31430841]
[1764509409540,0.9336,3048.4,3048.3,0.001]
[1764509409853,0.9336,3048.4,3048.3,0.72659411]
[1764509410155,0.9336,3048.4,3048.3,0.001]
[1764509410330,0.9336,3048.4,3048.3,3.281517]
[1764509410870,0.9336,3048.4,3048.3,4.00711111]
[1764509411224,0.4751,3048.4,3048.3,4.00711111]
[1764509411556,0.1808,3048.9,3048.3,4.00711111]
[1764509411557,0.4585,3048.7,3048.3,7.28762811]
[1764509411757,0.4585,3048.7,3048.4,0.03280409]
[1764509411934,0.4585,3048.7,3048.6,0.72559411]
[1764509412339,0.9336,3048.7,3048.6,0.72559411]
[1764509412663,0.9336,3048.7,3048.5,0.72559411]
[1764509412860,0.9336,3048.6,3048.5,0.72559411]
[1764509414125,0.9336,3048.6,3048.4,0.03280409]
[1764509414355,0.9336,3048.5,3048.4,0.7583982]
[1764509414577,0.9336,3048.5,3048.4,0.72559411]
[1764509415232,0.9336,3048.5,3048.3,0.001]
[1764509415428,0.9336,3048.4,3048.3,0.001]
[1764509415835,0.9336,3048.4,3048.3,3.281517]
[1764509416049,0.9336,3048.4,3048.3,4.00711111]
[1764509416375,0.9336,3048.4,3048.3,0.72659411]
[1764509416572,0.9336,3048.4,3048.3,0.001]
[1764509417861,1.1436,3048.4,3048.3,0.001]
[1764509419570,0.9336,3048.4,3048.3,0.001]
[1764509426456,1.37925789,3048.4,3048.3,0.001]
[1764509426776,4.65966728,3048.4,3048.3,0.001]
[1764509426972,4.69245001,3048.4,3048.3,0.001]
[1764509427179,1.41204062,3048.4,3048.3,0.001]
[1764509427475,4.69245001,3048.4,3048.3,0.001]
[1764509427685,1.41204062,3048.4,3048.3,0.001]
[1764509427983,1.41404062,3048.4,3048.3,0.001]
[1764509429069,1.38125789,3048.4,3048.3,0.001]
[1764509431190,4.66166728,3048.4,3048.3,0.001]
[1764509431670,4.76166728,3048.4,3048.3,0.001]
[1764509431873,1.48125789,3048.4,3048.3,0.001]
[1764509432182,4.21600939,3048.4,3048.3,0.001]
[1764509432591,0.9356,3048.4,3048.3,0.001]
[1764509432956,4.21600939,3048.4,3048.3,0.001]
[1764509433375,0.9356,3048.4,3048.3,0.001]
[1764509433653,0.4771,3048.4,3048.3,0.001]
[1764509433985,1.1727,3048.4,3048.3,0.001]
[1764509434185,1.62126782,3048.4,3047.9,0.001]
[1764509434389,1.62126782,3048.4,3047.0,0.001]
[1764509434390,0.5963,3047.5,3047.0,0.001]
[1764509434552,0.8744,3047.4,3047.0,0.001]
[1764509434754,0.5922,3047.1,3047.0,0.001]
[1764509435212,1.0778,3047.1,3047.0,0.001]
[1764509435519,0.9778,3047.1,3047.0,0.001]
[1764509435738,1.1878,3047.1,3047.0,0.001]
[1764509436080,4.46960893,3047.1,3047.0,0.001]
[1764509436280,5.01656982,3047.1,3047.0,0.001]
[1764509436714,1.73476089,3047.1,3047.0,0.001]
[1764509436917,1.1878,3047.1,3047.0,0.001]
[1764509437113,4.46960893,3047.1,3047.0,0.001]
[1764509437315,1.1878,3047.1,3047.0,0.001]
[1764509437620,4.46960893,3047.1,3047.0,0.001]
[1764509437912,1.1878,3047.1,3047.0,0.001]
[1764509438327,5.01656579,3047.1,3047.0,0.001]
[1764509438486,1.73475686,3047.1,3047.0,0.001]
[1764509438686,4.56960893,3047.1,3047.0,0.001]
[1764509438986,1.1878,3047.1,3047.0,0.001]
[1764509439188,4.46960893,3047.1,3047.0,0.001]
[1764509439386,0.4922,3047.1,3047.0,0.001]
[1764509439622,0.7022,3047.1,3047.0,0.001]
[1764509439824,0.21,3047.1,3047.0,0.001]
[1764509440326,0.0577,3047.9,3047.0,0.9199]
[1764509440489,0.21,3047.8,3047.4,0.4578]
[1764509440691,0.24278273,3047.8,3047.2,0.03281701]
[1764509441218,0.24278273,3047.8,3047.2,0.49391701]
[1764509441219,0.21,3047.8,3047.2,0.49391701]
[1764509441732,0.21,3047.8,3047.4,0.72559411]
[1764509443108,0.6956,3047.8,3047.4,0.72559411]
[1764509443311,0.21,3047.8,3047.4,0.72559411]
[1764509443626,0.21,3047.7,3047.5,3.28137817]
[1764509444341,0.002,3048.8,3047.6,1.64449411]
[1764509444489,0.21,3048.3,3047.9,0.4578]
[1764509444690,3.80042787,3048.8,3048.3,0.6465]
[1764509444691,0.03478273,3048.8,3048.3,0.6465]
[1764509444895,0.4983,3048.4,3048.0,0.1887]
[1764509445102,0.4983,3048.4,3048.0,0.32011489]
[1764509445305,0.4983,3048.4,3048.0,0.13141489]
[1764509445716,0.002,3048.4,3048.2,0.72559411]
[1764509446289,0.002,3048.4,3048.3,0.4578]
[1764509446717,0.002,3048.4,3048.3,0.9189]
[1764509446927,0.002,3048.4,3047.3,3.28159354]
[1764509446928,1.1939,3048.4,3047.3,3.28159354]
[1764509447232,0.07188273,3048.3,3047.5,0.21]
[1764509447392,0.55748273,3048.3,3047.5,0.21]
[1764509447594,3.28062463,3048.2,3047.5,0.21]
[1764509447893,0.03278273,3048.1,3047.5,3.95244275]
[1764509448099,0.03278273,3048.1,3047.5,0.21]
[1764509448313,0.4963,3047.6,3047.5,0.21]
[1764509448820,0.4963,3047.6,3047.1,0.1887]
[1764509449318,0.4963,3047.6,3047.3,0.4963]
[1764509450348,0.4963,3047.6,3047.1,0.1887]
[1764509450349,4.26318235,3047.6,3047.1,0.1887]
[1764509450516,3.77758235,3047.6,3047.2,0.4963]
[1764509450717,0.4963,3047.6,3047.2,0.4963]
[1764509451415,0.4963,3047.6,3047.1,0.84939411]
[1764509451608,4.26320534,3047.6,3047.0,0.72659411]
[1764509451812,4.26320534,3047.6,3047.0,1.71244225]
[1764509452240,0.4963,3047.6,3047.1,0.72559411]
[1764509452415,0.9668,3047.6,3047.1,0.72559411]
[1764509452617,0.9668,3047.6,3047.0,0.98684814]
[1764509452618,4.24809844,3047.6,3047.0,0.98684814]
[1764509453018,5.02920371,3047.6,3047.0,0.98684814]
[1764509453624,0.2027,3047.1,3047.0,0.001]
[1764509454011,0.6732,3047.1,3047.0,0.001]
[1764509454343,3.95500893,3047.1,3047.0,0.001]
[1764509454544,4.69967034,3047.1,3047.0,0.001]
[1764509455912,0.94736141,3047.1,3047.0,0.001]
[1764509456110,0.4127,3047.1,3047.0,0.001]
[1764509456545,0.8832,3047.1,3047.0,0.001]
[1764509457353,4.16500893,3047.1,3047.0,0.001]
[1764509457744,4.26500893,3047.1,3047.0,0.001]
[1764509457946,0.6732,3047.1,3047.0,0.001]
[1764509458147,0.8832,3047.1,3047.0,0.001]
[1764509458346,4.16500893,3047.1,3047.0,0.001]
[1764509458553,0.8832,3047.1,3047.0,0.001]
[1764509459136,0.6732,3047.1,3047.0,0.001]
[1764509459355,0.8832,3047.1,3047.0,0.001]
[1764509460148,0.21,3047.1,3047.0,0.001]
[1764509460350,3.281379,3047.5,3047.0,0.001]
[1764509460351,0.50328273,3047.4,3047.0,0.001]
[1764509460658,0.58846921,3047.3,3047.0,0.001]
[1764509461162,0.21,3047.2,3047.0,0.001]
[1764509461464,0.03278273,3047.5,3047.0,0.001]
[1764509461465,0.4922,3047.1,3047.0,0.001]
[1764509462375,4.34450893,3047.1,3047.0,0.001]
[1764509464744,4.45450893,3047.1,3047.0,0.001]
[1764509465267,4.55450893,3047.1,3047.0,0.001]
[1764509465685,6.075081,3047.1,3047.0,0.001]
[1764509467187,5.669577,3047.1,3047.0,0.001]
[1764509469190,5.569577,3047.1,3047.0,0.001]
[1764509469687,5.669577,3047.1,3047.0,0.001]
[1764509470480,5.569577,3047.1,3047.0,0.001]
[1764509470965,5.669577,3047.1,3047.0,0.001]
[1764509474695,6.80067511,3047.1,3047.0,0.001]
[1764509475265,0.72559411,3047.0,3046.7,0.001]
[1764509475461,1.62009811,3046.8,3046.7,0.001]
[1764509475891,3.38137817,3047.5,3046.7,0.9197]
[1764509476094,0.24278273,3047.4,3046.8,0.4641]
[1764509476410,0.1,3046.9,3046.7,0.001]
[1764509476595,0.71328273,3047.4,3046.7,0.001]
[1764509476596,0.21,3046.8,3046.7,0.001]
[1764509476766,0.21,3046.8,3046.7,0.4556]
[1764509477093,0.21,3046.8,3046.7,0.9197]
[1764509478066,0.21,3046.8,3046.7,0.4651]
[1764509478267,0.21,3046.9,3046.7,0.001]
[1764509478463,0.03278273,3046.8,3046.7,0.001]
[1764509478669,0.24278273,3046.9,3046.7,0.001]
[1764509478868,0.24278273,3046.9,3046.8,0.4641]
[1764509479302,0.21,3046.9,3046.8,0.4641]
[1764509479792,0.21,3046.9,3046.8,0.9187]
[1764509479995,0.21,3046.9,3046.7,0.001]
[1764509480213,0.208,3046.8,3046.7,0.001]
[1764509480614,0.24078273,3046.8,3046.7,0.001]
[1764509481322,0.81128273,3046.8,3046.7,0.001]
[1764509481824,4.0934148,3046.8,3046.7,0.001]
[1764509481990,4.59145831,3046.8,3046.7,0.001]
[1764509482926,5.05795831,3046.8,3046.7,0.001]
[1764509484117,4.95795831,3046.8,3046.7,0.001]
[1764509484319,1.67582624,3046.8,3046.7,0.001]
[1764509484522,4.1994148,3046.8,3046.7,0.001]
[1764509484922,0.91728273,3046.8,3046.7,0.001]
[1764509485226,3.7329148,3046.8,3046.7,0.001]
[1764509485718,0.03278273,3046.8,3046.7,0.4868]
[1764509485926,0.21,3046.8,3046.7,0.9568]
[1764509487731,0.21,3046.8,3046.7,0.4868]
[1764509487933,0.21,3046.8,3046.7,0.001]
[1764509488351,0.21,3046.8,3046.7,0.4868]
[1764509488643,0.21,3046.8,3046.7,0.9568]
[1764509492638,0.21,3046.8,3046.7,4.2390398]
[1764509493010,0.21,3046.8,3046.7,0.9568]
[1764509493207,0.21,3046.8,3046.7,0.4868]
[1764509493941,0.21,3046.8,3046.7,4.2390398]
[1764509494722,0.002,3047.3,3046.8,0.72559411]
[1764509494926,0.002,3047.3,3047.2,0.6756]
[1764509495139,0.002,3047.3,3047.2,1.1456]
[1764509496735,0.002,3047.3,3047.2,4.42730123]
[1764509497260,0.002,3047.3,3046.8,0.85703966]
[1764509497261,0.002,3047.3,3046.8,0.13144555]
[1764509497472,0.002,3047.3,3047.2,0.6756]
[1764509497834,0.002,3047.3,3047.2,0.4858]
[1764509498636,0.002,3047.3,3047.2,0.9558]
[1764509498977,0.002,3047.3,3047.2,4.23750123]
[1764509499134,0.002,3047.3,3047.2,4.96309534]
[1764509500166,0.002,3047.3,3047.2,4.49309534]
[1764509500468,0.002,3047.3,3047.2,1.21139411]
[1764509500934,0.002,3047.3,3047.2,4.49309534]
[1764509501851,0.002,3047.3,3047.2,4.96309534]
[1764509503003,0.002,3047.3,3047.2,1.21139411]
[1764509503502,0.002,3047.3,3046.9,0.47]
[1764509503695,0.002,3047.3,3046.9,3.75199651]
[1764509504003,0.002,3047.3,3047.2,0.4858]
[1764509504400,0.002,3047.3,3046.9,7.03402086]
[1764509504577,0.002,3047.3,3047.2,0.4858]
[1764509504780,0.002,3047.3,3047.2,0.6756]
[1764509504980,0.002,3047.3,3047.2,4.42730123]
[1764509505173,0.002,3047.3,3046.7,0.001]
[1764509505373,0.002,3047.3,3047.2,0.6756]
[1764509506004,0.002,3047.3,3047.2,1.1456]
[1764509506177,0.002,3047.3,3047.2,1.30984572]
[1764509506373,0.002,3047.3,3047.2,1.92534972]
[1764509506773,0.002,3047.6,3047.3,0.405504]
[1764509506990,0.002,3047.6,3047.5,0.4858]
[1764509507175,0.002,3047.6,3047.5,4.89827628]
[1764509507374,0.002,3047.6,3047.5,5.36827628]
[1764509507577,0.002,3047.7,3047.6,1.13109811]
[1764509507878,0.002,3048.4,3047.6,2.29689811]
[1764509508074,0.002,3048.4,3048.0,0.405504]
[1764509508379,0.002,3048.4,3048.2,1.80669811]
[1764509508703,0.002,3048.4,3048.3,0.405504]
[1764509508872,0.002,3048.4,3048.3,1.361304]
[1764509509071,0.002,3048.4,3048.3,5.36741511]
[1764509509309,0.002,3048.4,3048.3,5.49877821]
[1764509510074,0.002,3048.4,3048.3,5.09327421]
[1764509510293,0.002,3048.4,3048.3,4.236317]
[1764509510500,0.002,3048.4,3048.3,0.4858]
[1764509510833,0.002,3048.4,3048.3,0.72559411]
[1764509511039,0.002,3048.4,3048.3,1.68139411]
[1764509511212,0.002,3048.4,3048.3,5.57741511]
[1764509513432,0.002,3048.4,3048.3,5.61022028]
[1764509513904,0.002,3048.4,3048.3,5.57741511]
[1764509514109,0.002,3048.4,3048.3,5.61022028]
[1764509515434,0.002,3048.4,3048.3,5.57741511]
[1764509515950,0.002,3048.4,3048.3,5.61122028]
[1764509516452,0.002,3048.4,3048.3,9.07977928]
[1764509516741,0.002,3048.4,3048.3,9.04697411]
[1764509517340,0.002,3048.4,3048.3,9.17832643]
[1764509517918,1e-08,3048.5,3048.4,0.405504]
[1764509518150,1e-08,3048.5,3048.4,11.41363311]
[1764509518337,1e-08,3048.5,3048.4,2.29749811]
[1764509518542,1e-08,3048.5,3048.4,6.10725739]
[1764509518748,1e-08,3048.5,3048.4,2.21884439]
[1764509518949,1e-08,3048.5,3048.4,2.42884439]
[1764509519320,1e-08,3048.5,3048.4,3.76260939]
[1764509519521,1e-08,3048.5,3048.4,4.47961348]
[1764509519727,1e-08,3048.5,3048.4,5.20520759]
[1764509520451,1e-08,3048.5,3048.4,4.52100759]
[1764509520749,1e-08,3048.5,3048.4,4.99520759]
[1764509520952,1e-08,3048.5,3048.4,5.40071159]
[1764509521151,1e-08,3048.5,3048.4,5.3679075]
[1764509522830,1e-08,3048.5,3048.4,4.8937075]
[1764509523359,0.47060001,3048.5,3048.4,4.0060035]
[1764509523662,0.94800001,3048.5,3048.4,4.0060035]
[1764509524160,0.94800001,3048.5,3048.3,0.001]
[1764509524363,0.5056,3048.4,3048.3,0.001]
[1764509525458,3.78600939,3048.4,3048.3,0.001]
[1764509525767,4.49263179,3048.4,3048.3,0.001]
[1764509526964,4.70263179,3048.4,3048.3,0.001]
[1764509527264,4.80263179,3048.4,3048.3,0.001]
[1764509527563,1.5222224,3048.4,3048.3,0.001]
[1764509527763,4.09600939,3048.4,3048.3,0.001]
[1764509529387,10.55682817,3048.4,3047.9,0.001]
[1764509529538,0.5662,3048.0,3047.9,0.001]
[1764509530041,0.9436,3048.0,3047.9,0.001]
[1764509530466,0.9436,3048.0,3046.7,0.001]
[1764509530467,0.405504,3047.9,3046.7,0.001]
[1764509530687,0.2305,3047.7,3046.7,0.001]
[1764509530981,0.6559,3046.8,3046.7,0.001]
[1764509531348,1.1333,3046.8,3046.7,0.001]
[1764509531581,0.1979,3047.0,3046.7,0.001]
[1764509532061,0.6753,3047.0,3046.7,0.03382239]
[1764509532369,0.1979,3047.2,3046.7,0.03382239]
[1764509532589,0.1979,3047.2,3046.7,0.001]
[1764509532907,0.6753,3047.2,3046.7,0.03382239]
[1764509533102,0.4774,3047.1,3046.7,0.03382239]
[1764509533289,0.1979,3047.7,3047.1,0.6771]
[1764509533481,0.1979,3047.7,3047.2,0.03281701]
[1764509533682,0.1979,3047.7,3047.3,3.28159354]
[1764509533877,0.1979,3048.0,3047.4,0.03281485]
[1764509534068,0.1979,3048.0,3047.2,3.28167719]
[1764509534069,0.4706,3047.4,3047.2,3.28167719]
[1764509534276,0.4706,3047.4,3047.3,0.72559411]
[1764509534498,0.4706,3047.4,3047.1,0.72559411]
[1764509534801,0.0244,3047.2,3047.1,0.72559411]
[1764509535003,0.0244,3047.2,3046.8,3.28211935]
[1764509535300,0.4774,3047.4,3046.8,3.28211935]
[1764509535473,0.4774,3047.4,3046.8,6.56425142]
[1764509535672,0.4774,3047.4,3046.7,0.72659411]
[1764509535874,0.4774,3047.8,3046.8,0.50702132]
[1764509536205,0.23068273,3047.9,3046.8,0.6842]
[1764509536711,0.70808273,3047.9,3046.9,0.4742]
[1764509536893,1.14776527,3047.9,3046.9,0.4742]
[1764509537078,4.42877764,3047.9,3046.9,0.4742]
[1764509537407,0.4774,3047.8,3046.9,0.4742]
[1764509537609,0.4774,3047.8,3046.7,1.20079411]
[1764509537904,0.4774,3047.8,3046.9,0.72559411]
[1764509538275,0.4774,3047.8,3046.9,1.19979411]
[1764509539210,0.23068273,3047.9,3046.9,0.72559411]
[1764509539377,0.21,3048.0,3047.0,0.50701916]
[1764509539578,0.21,3048.0,3047.1,0.1949]
[1764509539925,0.1979,3048.2,3047.4,0.72559411]
[1764509540443,0.002,3048.8,3048.3,0.405504]
[1764509540734,0.03278273,3050.9,3049.5,2.526054]
[1764509540896,0.03278273,3051.2,3049.6,0.21]
[1764509541099,0.03278273,3051.2,3049.8,0.72559411]
[1764509541319,0.1979,3051.4,3049.7,8.009993]
[1764509541320,0.1979,3051.4,3049.9,1.21558825]
[1764509541632,0.01,3052.4,3050.3,1.13109811]
[1764509541633,0.03278273,3051.5,3050.3,1.13109811]
[1764509541937,0.03278273,3051.8,3050.4,1.86695092]
[1764509542095,0.03278273,3051.8,3050.5,0.405504]
[1764509542301,0.01,3052.4,3050.6,30.98965092]
[1764509542597,0.01,3052.4,3050.8,16.446614]
[1764509542798,0.03278273,3052.3,3050.9,1.60515492]
[1764509542998,0.01,3052.4,3051.1,0.405504]
[1764509543509,0.484,3052.3,3051.2,0.1939]
[1764509543707,0.484,3052.3,3051.3,6.55458328]
[1764509543909,0.04278273,3052.4,3051.4,0.93559411]
[1764509544127,0.01,3052.4,3051.5,0.405504]
[1764509544331,0.01,3052.4,3051.5,0.783204]
[1764509544841,0.01,3052.4,3051.6,0.4995]
[1764509545138,0.494,3052.4,3051.4,0.72559411]
[1764509545347,0.494,3052.4,3051.5,0.21]
[1764509545751,0.494,3052.4,3051.7,0.72559411]
[1764509545942,0.494,3052.4,3051.6,6.5539389]
[1764509545943,0.6663,3051.6,3050.4,6.74959974]
[1764509546148,0.1803,3051.6,3050.5,0.4995]
[1764509546310,0.1803,3051.6,3050.7,0.405504]
[1764509546620,0.6643,3051.6,3050.7,0.21]
[1764509547028,0.1803,3051.9,3050.8,0.21]
[1764509547234,0.21308273,3051.9,3050.7,0.4995]
[1764509547439,0.484,3051.8,3050.5,1.13109811]
[1764509547615,0.03278273,3051.7,3050.8,0.21]
[1764509547810,0.03278273,3051.7,3051.0,0.72559411]
[1764509548049,0.51678273,3051.7,3051.0,0.72559411]
[1764509548417,0.1803,3051.9,3051.0,0.72559411]
[1764509548626,0.1803,3052.1,3051.0,0.72559411]
[1764509548847,0.484,3052.0,3051.1,0.21]
[1764509549214,0.1803,3052.1,3051.2,0.405504]
[1764509549418,0.03278273,3052.3,3051.2,0.905004]
[1764509549627,0.01,3052.4,3051.3,0.4995]
[1764509549829,0.01,3052.4,3051.6,0.72559411]
[1764509550038,0.01,3052.4,3051.8,0.405504]
[1764509550242,0.01,3052.4,3051.7,0.4995]
[1764509550641,0.01,3052.4,3051.8,0.21]
[1764509550841,0.484,3052.3,3051.7,0.21]
[1764509551153,0.01,3052.4,3051.7,0.7095]
[1764509551754,0.494,3052.4,3051.7,0.21]
[1764509551925,0.002,3052.1,3051.8,0.72559411]
[1764509552126,0.002,3052.1,3051.2,0.405504]
[1764509552329,0.002,3052.1,3051.5,0.21]
[1764509552940,0.002,3052.1,3050.9,3.27771259]
[1764509553119,0.486,3052.1,3050.9,0.4995]
[1764509553320,0.03278273,3052.0,3050.7,3.27790048]
[1764509553654,0.1,3051.9,3050.4,0.4031]
[1764509553858,0.002,3052.1,3050.7,3.27793621]
[1764509554022,0.002,3052.1,3051.8,0.4866]
[1764509555226,0.002,3052.1,3051.5,0.03277076]
[1764509555438,0.002,3052.1,3051.0,0.905004]
[1764509555646,3.65474642,3052.1,3051.0,0.905004]
[1764509555924,4.17152915,3052.1,3051.2,0.72559411]
[1764509556153,0.484,3052.0,3050.6,0.4995]
[1764509556353,0.484,3052.0,3050.7,6.79865178]
[1764509556354,0.74480342,3052.0,3050.7,6.79865178]
[1764509556653,0.37824133,3052.1,3050.8,0.93778228]
[1764509556839,0.484,3052.0,3050.8,1.63059811]
[1764509557039,0.484,3052.0,3051.0,0.405504]
[1764509557239,0.1803,3051.9,3051.0,0.405504]
[1764509557445,0.1803,3051.9,3051.0,0.4995]
[1764509557647,3.27844874,3052.1,3051.0,0.4995]
[1764509557953,3.27844874,3052.1,3051.2,0.72559411]
[1764509557954,0.34587487,3052.0,3051.2,0.72559411]
[1764509558253,0.002,3052.1,3051.3,0.03277291]
[1764509558454,3.76244209,3052.1,3051.3,0.03277291]
[1764509558653,0.002,3052.1,3051.3,0.03277291]
[1764509558955,0.002,3052.1,3051.3,0.53227291]
[1764509559536,0.002,3052.1,3052.0,0.4866]
[1764509559738,0.002,3052.1,3052.0,0.9861]
[1764509559954,0.002,3052.1,3051.1,13.11002588]
[1764509559955,0.972,3052.1,3050.0,0.4995]
[1764509560152,0.0279,3051.8,3050.5,0.03278151]
[1764509560361,0.0279,3051.8,3050.6,0.4995]
[1764509560558,0.5119,3051.8,3050.6,0.4995]
[1764509560938,0.5119,3051.8,3050.4,0.1931]
[1764509561396,0.5119,3051.8,3049.5,0.5119]
[1764509561397,0.3047,3050.5,3049.5,0.5119]
[1764509561552,0.4207,3050.3,3049.5,3.27918934]
[1764509561754,0.1803,3050.5,3049.6,0.4995]
[1764509561960,0.1803,3050.5,3049.4,0.1949]
[1764509561961,0.6643,3050.5,3049.7,3.27896338]
[1764509562285,3.94246261,3050.5,3049.7,3.27896338]
[1764509562582,3.94246261,3050.5,3049.4,0.1949]
[1764509562583,0.484,3050.4,3049.4,6.75346486]
[1764509562943,0.484,3050.4,3049.4,7.25296486]
[1764509563270,0.484,3050.4,3049.5,0.72559411]
[1764509563477,0.484,3050.4,3049.4,7.25296486]
[1764509563661,0.484,3050.4,3049.4,10.53229849]